fUSD/lending_fUSD_20260408
["ID","MTS","AMOUNT","RATE_DAILY","PERIOD"]
[420070054,1775649032848,-500.0,0.0001,2]
[420070055,1775649032859,-151.0,0.0001,2]
[420070056,1775649032870,-500.0,0.0001,2]
[420070057,1775649032880,-500.0,0.0001,2]
[420070058,1775649032891,-151.0,0.0001,2]
[420070059,1775649032902,-500.0,0.0001,2]
[420070060,1775649032912,-500.0,0.0001,2]
[420070061,1775649032922,-151.0,0.0001,2]
[420070062,1775649032933,-500.0,0.0001,2]
[420070063,1775649032942,-500.0,0.0001,2]
[420070064,1775649032954,-151.0,0.0001,2]
[420070065,1775649032964,-500.0,0.0001,2]
[420070066,1775649032975,-151.0,0.0001,2]
[420070067,1775649032984,-500.0,0.0001,2]
[420070068,1775649032995,-151.0,0.0001,2]
[420070069,1775649033006,-500.0,0.0001,2]
[420070070,1775649033017,-151.0,0.0001,2]
[420070071,1775649033028,-500.0,0.0001,2]
[420070072,1775649033040,-151.0,0.0001,2]
[420070073,1775649033051,-500.0,0.0001,2]
[420070074,1775649033062,-151.0,0.0001,2]
[420070075,1775649033073,-500.0,0.0001,2]
[420070076,1775649033084,-151.0,0.0001,2]
[420070077,1775649033096,-500.0,0.0001,2]
[420070078,1775649033107,-151.0,0.0001,2]
[420070079,1775649033118,-151.0,0.0001,2]
[420070080,1775649033129,-151.0,0.0001,2]
[420070081,1775649033139,-151.0,0.0001,2]
[420070082,1775649033150,-151.0,0.0001,2]
[420070083,1775649033161,-426.64483273,0.0001,2]
[420070084,1775649033171,-426.64483273,0.0001,2]
[420070085,1775649033181,-426.64483273,0.0001,2]
[420070086,1775649033191,-166.66,0.00010013,2]
[420070087,1775649033203,-151.0,0.00010241,2]
[420070088,1775649033213,-216.25,0.00010251,2]
[420070089,1775649033224,-433.0,0.00010306,2]
[420070090,1775649033234,-166.66,0.00010333,2]
[420070091,1775649033245,-159.16,0.00010571,2]
[420070092,1775649033255,-172.8526,0.000106,2]
[420070093,1775649033268,-166.66,0.00010653,2]
[420070094,1775649033278,-2351.0,0.00010754,2]
[420070095,1775649033288,-952.70532978,0.000109,2]
[420070096,1775649033298,-166.66,0.00010973,2]
[420070097,1775649033309,-169.82,0.00011233,2]
[420070098,1775649033319,-166.66,0.00011292,2]
[420070099,1775649033330,-407.0,0.00011336,2]
[420070100,1775649033341,-1288.49995941,0.00011473,2]
[420070101,1775649033351,-155.273,0.00011473,2]
[420070102,1775649033362,-6802.77,0.00011507,2]
[420070103,1775649033373,-576.75688538,0.00011573,2]
[420070104,1775649033384,-500.0,0.00011573,2]
[420070105,1775649033395,-500.0,0.00011573,2]
[420070106,1775649033405,-500.0,0.00011573,2]
[420070107,1775649033415,-164.45663059,0.00011573,2]
[420070108,1775649033425,-500.0,0.00011573,2]
[420070109,1775649033435,-500.0,0.00011573,2]
[420070110,1775649033446,-209.52918559,0.00011573,2]
[420070111,1775649033457,-11166.76949535,0.00011609,2]
[420070112,1775649033468,-250.0,0.00011628,2]
[420070113,1775649033479,-3292.0,0.0001183,2]
[420070114,1775649033489,-10080.65,0.00011857,2]
[420070115,1775649033500,-952.70532978,0.000119,2]
[420070116,1775649033511,-199.1869,0.000121,2]
[420070117,1775649033521,-1000.0,0.00012121,2]
[420070118,1775649033531,-1000.0,0.00012121,2]
[420070119,1775649033542,-671.93182394,0.00012121,2]
[420070120,1775649033552,-1000.0,0.00012121,2]
[420070121,1775649033563,-2000.0,0.00012199,2]
[420070122,1775649033573,-500.0,0.00012274,2]
[420070123,1775649033583,-451.79154668,0.00012662,2]
[420070124,1775649033593,-1500.0,0.00012668,2]
[420070125,1775649033603,-150.83840523,0.00012668,2]
[420070126,1775649033614,-952.70532978,0.000129,2]
[420070127,1775649033624,-250.0,0.00013,2]
[420070128,1775649033635,-4609.0,0.00013013,2]
[420070129,1775649033645,-500.0,0.00013041,2]
[420070130,1775649033656,-3569.65,0.00013169,2]
[420070131,1775649033667,-2000.0,0.00013216,2]
[420070132,1775649033678,-160.0,0.00013412,2]
[420070133,1775649033688,-150.0,0.00013425,2]
[420070134,1775649033698,-150.0,0.00013425,2]
[420070135,1775649033708,-150.0,0.00013425,2]
[420070136,1775649033718,-293.49073325,0.00013425,2]
[420070137,1775649033728,-500.0,0.00013425,2]
[420070138,1775649033738,-500.0,0.00013425,2]
[420070139,1775649033748,-500.0,0.00013425,2]
[420070140,1775649033759,-500.0,0.00013425,2]
[420070141,1775649033770,-500.0,0.00013425,2]
[420070142,1775649033781,-500.0,0.00013425,2]
[420070143,1775649033792,-500.0,0.00013425,2]
[420070144,1775649033802,-500.0,0.00013425,2]
[420070145,1775649033813,-500.0,0.00013425,2]
[420070146,1775649033823,-500.0,0.00013425,2]
[420070147,1775649033834,-500.0,0.00013425,2]
[420070148,1775649033844,-500.0,0.00013425,2]
[420070149,1775649033854,-500.0,0.00013425,2]
[420070150,1775649033864,-500.0,0.00013425,2]
[420070151,1775649033874,-151.78459476,0.00013425,2]
[420070152,1775649033885,-422.0,0.00013425,2]
[420070153,1775649033895,-422.0,0.00013425,2]
[420070154,1775649033907,-422.0,0.00013425,2]
[420070155,1775649033918,-422.0,0.00013425,2]
[420070156,1775649033928,-422.0,0.00013425,2]
[420070157,1775649033940,-422.0,0.00013425,2]
[420070158,1775649033961,-422.0,0.00013425,2]
[420070159,1775649033973,-422.0,0.00013425,2]
[420070160,1775649033984,-422.0,0.00013425,2]
[420070161,1775649033995,-422.0,0.00013425,2]
[420070162,1775649034006,-422.0,0.00013425,2]
[420070163,1775649034019,-422.0,0.00013425,2]
[420070164,1775649034030,-422.0,0.00013425,2]
[420070165,1775649034041,-422.0,0.00013425,2]
[420070166,1775649034052,-422.0,0.00013425,2]
[420070167,1775649034062,-422.0,0.00013425,2]
[420070168,1775649034073,-422.0,0.00013425,2]
[420070169,1775649034085,-422.0,0.00013425,2]
[420070170,1775649034095,-422.0,0.00013425,2]
[420070171,1775649034104,-422.0,0.00013425,2]
[420070172,1775649034115,-422.0,0.00013425,2]
[420070173,1775649034125,-422.0,0.00013425,2]
[420070174,1775649034136,-422.0,0.00013425,2]
[420070175,1775649034146,-426.0,0.00013425,2]
[420070176,1775649034156,-229.5333,0.000135,2]
[420070177,1775649034167,-500.0,0.00013698,2]
[420070178,1775649034178,-500.0,0.00013698,2]
[420070179,1775649034187,-215.39830433,0.00013698,2]
[420070180,1775649034198,-500.0,0.00013698,2]
[420070181,1775649034207,-500.0,0.00013698,2]
[420070182,1775649034218,-500.0,0.00013698,2]
[420070183,1775649034228,-500.0,0.00013698,2]
[420070184,1775649034238,-500.0,0.00013698,2]
[420070185,1775649034249,-500.0,0.00013698,2]
[420070186,1775649034259,-500.0,0.00013698,2]
[420070187,1775649034269,-500.0,0.00013698,2]
[420070188,1775649034279,-500.0,0.00013698,2]
[420070189,1775649034289,-500.0,0.00013698,2]
[420070190,1775649034299,-500.0,0.00013698,2]
[420070191,1775649034309,-500.0,0.00013698,2]
[420070192,1775649034319,-500.0,0.00013698,2]
[420070193,1775649034329,-258.60706313,0.00013698,2]
[420070194,1775649034339,-500.0,0.00013698,2]
[420070195,1775649034349,-500.0,0.00013698,2]
[420070196,1775649034358,-500.0,0.00013698,2]
[420070197,1775649034368,-500.0,0.00013698,2]
[420070198,1775649034378,-500.0,0.00013698,2]
[420070199,1775649034388,-500.0,0.00013698,2]
[420070200,1775649034397,-500.0,0.00013698,2]
[420070201,1775649034407,-500.0,0.00013698,2]
[420070202,1775649034417,-500.0,0.00013698,2]
[420070203,1775649034430,-216.72574047,0.00013698,2]
[420070204,1775649034441,-2443.24,0.00013699,2]
[420070205,1775649034453,-2647.56,0.00013699,2]
[420070206,1775649034465,-181.45,0.00013699,2]
[420070207,1775649034477,-2000.0,0.00013723,2]
[420070208,1775649034488,-1748.079082,0.00013764,2]
[420070209,1775649034499,-1288.49995935,0.00013791,2]
[420070210,1775649034510,-952.70532978,0.000139,2]
[420070211,1775649034520,-155.32006583,0.00014015,2]
[420070212,1775649034532,-258.00392754,0.00014232,2]
[420070213,1775649034542,-6453.0,0.00014314,2]
[420070214,1775649034553,-2647.56,0.00014384,2]
[420070215,1775649034563,-500.0,0.00014411,2]
[420070216,1775649034574,-863.61,0.00014853,2]
[420070217,1775649034585,-952.70532978,0.000149,2]
[420070218,1775649034595,-264.503,0.000149,2]
[420070219,1775649034605,-500.23,0.00015,2]
[420070220,1775649034619,-300.0,0.00015,2]
[420070221,1775649034629,-160.0,0.00015,2]
[420070222,1775649034639,-2089.0,0.00015,15]
[420070223,1775649034651,-900.0,0.00015068,2]
[420070224,1775649034661,-2647.56,0.00015068,2]
[420070225,1775649034671,-2000.0,0.00015248,2]
[420070226,1775649034682,-1031.0,0.00015547,2]
[420070227,1775649034692,-1031.0,0.00015574,2]
[420070228,1775649034702,-366.0,0.00015737,2]
[420070229,1775649034712,-608.59766135,0.0001574,2]
[420070230,1775649034723,-9035.0,0.00015746,2]
[420070231,1775649034733,-369.99709422,0.00015749,2]
[420070232,1775649034743,-370.12386351,0.00015749,2]
[420070233,1775649034754,-1031.0,0.0001575,2]
[420070234,1775649034766,-1000.0,0.00015752,2]
[420070235,1775649034777,-5977.26960676,0.00015752,2]
[420070236,1775649034788,-2647.56,0.00015753,2]
[420070237,1775649034798,-162.0,0.00015758,2]
[420070238,1775649034808,-500.0,0.00015808,2]
[420070239,1775649034818,-500.0,0.00015808,2]
[420070240,1775649034828,-396.4808442,0.00015808,2]
[420070241,1775649034839,-1910.16,0.0001583,2]
[420070242,1775649034849,-16407.69448072,0.0001584,2]
[420070243,1775649034896,-97438.76421008,0.0001584,2]
[420070244,1775649034907,-1910.16,0.00015842,2]
[420070245,1775649034917,-1910.16,0.00015842,2]
[420070246,1775649034927,-1910.16,0.00015842,2]
[420070247,1775649034938,-1910.16,0.00015842,2]
[420070248,1775649034951,-491.13551218,0.00015849,2]
[420070249,1775649034962,-34829.8287812,0.00015852,2]
[420070250,1775649034975,-2785.14339242,0.00015852,2]
[420070251,1775649034987,-106584.68144592,0.00015852,2]
[420070252,1775649035001,-4675.2867674,0.00015852,2]
[420070256,1775649038348,-427.0,9.292e-05,2]
[420070257,1775649038358,-37.11200247,0.00015852,2]
[420070258,1775649038370,-957.64349192,0.00015852,2]
[420070259,1775649038381,-1425.39541759,0.00015852,2]
[420070260,1775649038392,-320.00739685,0.00015852,2]
[420070261,1775649038562,-217248.8685793,0.00015852,2]
[420070262,1775649038571,-2443.24,0.00015862,2]
[420070263,1775649038582,-200.0,0.00015871,2]
[420070264,1775649038591,-500.0,0.00015872,2]
[420070265,1775649038601,-500.0,0.00015872,2]
[420070266,1775649038611,-200.0,0.00015872,2]
[420070267,1775649038619,-500.27274026,0.00015873,2]
[420070268,1775649038629,-308.60154884,0.00015873,2]
[420070269,1775649038639,-500.0,0.00015873,2]
[420070270,1775649038649,-500.0,0.00015873,2]
[420070271,1775649038659,-500.0,0.00015873,2]
[420070272,1775649038670,-500.0,0.00015873,2]
[420070273,1775649038679,-233.84757239,0.00015873,2]
[420070274,1775649038690,-500.0,0.0001589,2]
[420070275,1775649038699,-500.0,0.0001589,2]
[420070276,1775649038709,-500.0,0.0001589,2]
[420070277,1775649038718,-194.91667222,0.0001589,2]
[420070278,1775649038727,-2000.0,0.0001589,2]
[420070279,1775649038736,-952.70532978,0.000159,2]
[420070280,1775649038745,-4706.7984,0.000159,2]
[420070281,1775649038754,-184.01842302,0.000159,2]
[420070282,1775649038764,-2000.0,0.000159,2]
[420070283,1775649038774,-250.0,0.00015918,2]
[420070284,1775649038783,-366.0,0.0001594,2]
[420070285,1775649038793,-500.0,0.00015973,2]
[420070286,1775649038802,-501.53334874,0.00015973,2]
[420070287,1775649038811,-500.0,0.00015973,2]
[420070288,1775649038821,-500.0,0.00015973,2]
[420070289,1775649038830,-500.0,0.00015973,2]
[420070290,1775649038840,-500.0,0.00015973,2]
[420070291,1775649038849,-176.66503354,0.00015973,2]
[420070292,1775649038859,-500.0,0.00015973,2]
[420070293,1775649038868,-500.0,0.00015973,2]
[420070294,1775649038878,-500.0,0.00015973,2]
[420070295,1775649038888,-500.0,0.00015973,2]
[420070296,1775649038898,-500.0,0.00015973,2]
[420070297,1775649038907,-500.0,0.00015973,2]
[420070298,1775649038918,-500.0,0.00015973,2]
[420070299,1775649038928,-1031.0,0.00015989,2]
[420070300,1775649038937,-151.0,0.00015997,2]
[420070301,1775649038947,-151.0,0.00015997,2]
[420070302,1775649038956,-666.0,0.00015999,2]
[420070303,1775649038966,-666.0,0.00015999,2]
[420070304,1775649038975,-80623.0889727,0.00015999,2]
[420070305,1775649038985,-574860.62716522,0.00016,2]
[420070306,1775649038995,-218.181893,0.00016,2]
[420070307,1775649039384,-172.533458,0.00016,2]
[420070308,1775649039395,-172.533458,0.00016,2]
[420070309,1775649039405,-172.533458,0.00016,2]
[420070310,1775649039415,-172.533458,0.00016,2]
[420070311,1775649039425,-200.0,0.00016,2]
[420070312,1775649039434,-626.42600315,0.00016,2]
[420070313,1775649039445,-2000.0,0.00016,2]
[420070314,1775649039454,-2000.0,0.0001601,2]
[420070315,1775649039463,-2266.920781,0.0001602,2]
[420070316,1775649039473,-500.0,0.00016027,2]
[420070317,1775649039482,-3605.0,0.00016028,2]
[420070318,1775649039492,-3605.0,0.00016028,2]
[420070319,1775649039502,-1156.46347445,0.000161,30]
[420070320,1775649039511,-279.48032959,0.000161,2]
[420070321,1775649039521,-1500.0,0.000161,2]
[420070322,1775649039532,-1500.0,0.000161,2]
[420070323,1775649039541,-10523.46681786,0.000161,2]
[420070324,1775649039551,-10523.46681786,0.000161,2]
[420070325,1775649039561,-10523.46681786,0.000161,2]
[420070326,1775649039571,-626.42600315,0.000161,2]
[420070327,1775649039581,-238.38,0.00016108,4]
[420070328,1775649039590,-1288.49995935,0.00016109,2]
[420070329,1775649039600,-1031.0,0.0001611,2]
[420070330,1775649039610,-5024.31,0.00016116,2]
[420070331,1775649039620,-9999.99,0.00016116,2]
[420070332,1775649039632,-200.0,0.0001616,2]
[420070333,1775649039641,-3605.0,0.00016199,2]
[420070334,1775649039653,-3605.0,0.00016247,2]
[420070335,1775649039664,-4000.0,0.00016282,2]
[420070336,1775649039673,-304.8004,0.000163,2]
[420070337,1775649039684,-200.0,0.00016322,2]
[420070338,1775649039697,-3200.0,0.00016324,2]
[420070339,1775649039709,-1031.0,0.00016329,2]
[420070340,1775649039720,-200.0,0.0001634,2]
[420070341,1775649039731,-3561.69,0.00016367,2]
[420070342,1775649039743,-1031.0,0.00016369,2]
[420070343,1775649039754,-3605.0,0.00016392,2]
[420070344,1775649039766,-2000.0,0.000164,2]
[420070345,1775649039777,-3605.0,0.00016405,2]
[420070346,1775649039790,-1000.0,0.00016421,2]
[420070347,1775649039801,-1000.0,0.00016421,2]
[420070348,1775649039811,-1000.0,0.00016421,2]
[420070349,1775649039821,-1000.0,0.00016421,2]
[420070350,1775649039832,-666.0,0.00016437,2]
[420070351,1775649039845,-912.11,0.00016438,2]
[420070352,1775649039855,-1532.75,0.00016438,2]
[420070353,1775649039865,-643.61,0.00016438,2]
[420070354,1775649039875,-7092.7,0.00016438,2]
[420070355,1775649039884,-1161.87,0.00016438,2]
[420070356,1775649039893,-670.4,0.00016438,14]
[420070357,1775649039903,-857.01,0.00016438,2]
[420070358,1775649039913,-1781.0,0.00016438,2]
[420070359,1775649039922,-1781.0,0.00016438,2]
[420070360,1775649039931,-1781.0,0.00016438,2]
[420070361,1775649039941,-1781.0,0.00016438,2]
[420070362,1775649039951,-1781.0,0.00016438,2]
[420070363,1775649039961,-1781.0,0.00016438,2]
[420070364,1775649039971,-1781.0,0.00016438,2]
[420070365,1775649039980,-1781.0,0.00016438,2]
[420070366,1775649039989,-1781.0,0.00016438,2]
[420070367,1775649039999,-1781.0,0.00016438,2]
[420070368,1775649040010,-1781.0,0.00016438,2]
[420070369,1775649040021,-1781.0,0.00016438,2]
[420070370,1775649040033,-1781.0,0.00016438,2]
[420070371,1775649040044,-1781.0,0.00016438,2]
[420070372,1775649040054,-1781.0,0.00016438,2]
[420070373,1775649040065,-1781.0,0.00016438,2]
[420070374,1775649040075,-1781.0,0.00016438,2]
[420070375,1775649040085,-1781.0,0.00016438,2]
[420070376,1775649040094,-1781.0,0.00016438,2]
[420070377,1775649040104,-1781.0,0.00016438,2]
[420070378,1775649040113,-1781.0,0.00016438,2]
[420070379,1775649040122,-1781.0,0.00016438,2]
[420070380,1775649040132,-1781.0,0.00016438,2]
[420070381,1775649040142,-1792.83159741,0.00016438,2]
[420070382,1775649040152,-2500.0,0.00016438,2]
[420070383,1775649040163,-2500.0,0.00016438,2]
[420070384,1775649040172,-2500.0,0.00016438,2]
[420070385,1775649040182,-2500.0,0.00016438,2]
[420070386,1775649040191,-2500.0,0.00016438,2]
[420070387,1775649040202,-2500.0,0.00016438,2]
[420070388,1775649040211,-2500.0,0.00016438,2]
[420070389,1775649040220,-2500.0,0.00016438,2]
[420070390,1775649040230,-2500.0,0.00016438,2]
[420070391,1775649040239,-2500.0,0.00016438,2]
[420070392,1775649040250,-2500.0,0.00016438,2]
[420070393,1775649040259,-2500.0,0.00016438,2]
[420070394,1775649040269,-2500.0,0.00016438,2]
[420070395,1775649040279,-2500.0,0.00016438,2]
[420070396,1775649040289,-2500.0,0.00016438,2]
[420070397,1775649040299,-2500.0,0.00016438,2]
[420070398,1775649040308,-2500.0,0.00016438,2]
[420070399,1775649040318,-2500.0,0.00016438,2]
[420070400,1775649040327,-2500.0,0.00016438,2]
[420070401,1775649040337,-2500.0,0.00016438,2]
[420070402,1775649040347,-2500.0,0.00016438,2]
[420070403,1775649040356,-2500.0,0.00016438,2]
[420070404,1775649040365,-2500.0,0.00016438,2]
[420070405,1775649040375,-2500.0,0.00016438,2]
[420070406,1775649040384,-2500.0,0.00016438,2]
[420070407,1775649040394,-2500.0,0.00016438,2]
[420070408,1775649040403,-260.94513089,0.00016438,2]
[420070409,1775649040413,-260.0,0.00016438,3]
[420070410,1775649040423,-150.0,0.00016438,2]
[420070411,1775649040433,-250.0,0.00016438,2]
[420070412,1775649040443,-229.14,0.00016438,2]
[420070413,1775649040454,-900.0,0.00016438,2]
[420070414,1775649040464,-266.18786392,0.00016438,2]
[420070415,1775649040474,-2647.56,0.00016438,2]
[420070416,1775649040484,-150.0,0.00016438,2]
[420070417,1775649040493,-208.85233043,0.00016464,6]
[420070418,1775649040502,-1031.0,0.00016477,2]
[420070419,1775649040512,-200.0,0.00016485,2]
[420070420,1775649040521,-25144.7428754,0.000165,5]
[420070421,1775649040532,-6583.29898362,0.000165,2]
[420070422,1775649040541,-3605.0,0.00016514,2]
[420070423,1775649040550,-501.12672973,0.00016521,2]
[420070424,1775649040560,-1000.0,0.00016521,2]
[420070425,1775649040569,-1000.0,0.00016521,2]
[420070427,1775649040578,-1000.0,0.00016521,2]
[420070428,1775649040589,-1000.0,0.00016521,2]
[420070429,1775649040599,-882.1111067,0.00016521,2]
[420070430,1775649040609,-1000.0,0.00016521,2]
[420070431,1775649040618,-786.49380402,0.00016521,2]
[420070432,1775649040628,-1000.0,0.00016521,2]
[420070433,1775649040638,-1000.0,0.00016521,2]
[420070434,1775649040648,-1031.0,0.00016541,2]
[420070435,1775649040658,-3598.0,0.00016563,2]
[420070436,1775649040668,-3605.0,0.00016566,2]
[420070437,1775649040677,-3605.0,0.000166,2]
[420070438,1775649040687,-363.5916548,0.000166,2]
[420070439,1775649040696,-200.0,0.0001665,2]
[420070440,1775649040706,-4000.0,0.0001667,2]
[420070441,1775649040716,-250.0,0.00016712,2]
[420070442,1775649040726,-233.97,0.00016712,2]
[420070443,1775649040735,-3561.69,0.00016766,2]
[420070444,1775649040745,-3561.69,0.00016766,2]
[420070445,1775649040755,-2000.0,0.00016773,2]
[420070446,1775649040765,-13603.3572,0.000168,2]
[420070447,1775649040775,-1031.0,0.00016808,2]
[420070448,1775649040787,-155.273,0.000169,2]
[420070449,1775649040797,-152.1622225,0.000169,2]
[420070450,1775649040807,-1486.76,0.00016931,2]
[420070451,1775649040817,-624.31,0.00016931,2]
[420070452,1775649040827,-1127.01,0.00016931,2]
[420070453,1775649040836,-831.3,0.00016931,2]
[420070454,1775649040846,-1500.0,0.00016968,2]
[420070455,1775649040856,-755.90284256,0.00016968,2]
[420070456,1775649040866,-1315.21682164,0.00016968,2]
[420070457,1775649040876,-1018.40309967,0.00016968,2]
[420070458,1775649040885,-1031.0,0.00016969,2]
[420070459,1775649040895,-150.0,0.00016986,2]
[420070460,1775649040904,-350.0,0.00016986,2]
[420070461,1775649040914,-300.0,0.00016999,2]
[420070462,1775649040925,-300.0,0.00016999,2]
[420070463,1775649040935,-300.0,0.00016999,2]
[420070464,1775649040944,-300.0,0.00016999,2]
[420070465,1775649040954,-300.0,0.00016999,2]
[420070466,1775649040964,-300.0,0.00016999,2]
[420070467,1775649040974,-300.0,0.00016999,2]
[420070468,1775649040984,-300.0,0.00016999,2]
[420070469,1775649040993,-300.0,0.00016999,2]
[420070470,1775649041003,-300.0,0.00016999,2]
[420070471,1775649041013,-300.0,0.00016999,2]
[420070472,1775649041023,-300.0,0.00016999,2]
[420070473,1775649041033,-300.0,0.00016999,2]
[420070474,1775649041043,-300.0,0.00016999,2]
[420070475,1775649041054,-300.0,0.00016999,2]
[420070476,1775649041064,-1378706.81791862,0.00017,2]
[420070477,1775649041074,-172.533458,0.00017,2]
[420070478,1775649041084,-172.533458,0.00017,2]
[420070479,1775649041094,-172.533458,0.00017,2]
[420070480,1775649041104,-172.533458,0.00017,2]
[420070481,1775649041115,-350.0,0.00017,2]
[420070482,1775649041125,-167.03,0.00017,2]
[420070483,1775649041134,-2295.88,0.00017019,2]
[420070484,1775649041144,-1116.15,0.00017019,2]
[420070485,1775649041154,-608.16,0.00017019,2]
[420070486,1775649041164,-1031.0,0.00017055,2]
[420070487,1775649041174,-4000.0,0.00017058,2]
[420070488,1775649041184,-1500.0,0.00017068,2]
[420070489,1775649041194,-1500.0,0.00017068,2]
[420070490,1775649041203,-1500.0,0.00017068,2]
[420070491,1775649041213,-1500.0,0.00017068,2]
[420070492,1775649041224,-1500.0,0.00017068,2]
[420070493,1775649041234,-1500.0,0.00017068,2]
[420070494,1775649041244,-1500.0,0.00017068,2]
[420070495,1775649041255,-1031.0,0.00017098,2]
[420070496,1775649041265,-1031.0,0.00017119,2]
[420070497,1775649041275,-450.0,0.0001726,2]
[420070498,1775649041286,-12649.0,0.0001732,2]
[420070499,1775649041295,-757.41014029,0.00017401,2]
[420070500,1775649041305,-3378.88701027,0.00017403,2]
[420070501,1775649041314,-1440.78,0.00017424,2]
[420070502,1775649041324,-605.0,0.00017424,2]
[420070503,1775649041334,-1092.15,0.00017424,2]
[420070504,1775649041344,-805.58,0.00017424,2]
[420070505,1775649041354,-500.0,0.00017425,2]
[420070506,1775649041364,-155.32006583,0.00017519,2]
[420070507,1775649041374,-150.0,0.00017534,2]
[420070508,1775649041384,-550.0,0.00017534,2]
[420070509,1775649041394,-1573.0,0.00017548,2]
[420070510,1775649041405,-1573.0,0.00017548,2]
[420070511,1775649041415,-588.0,0.00017589,2]
[420070512,1775649041426,-390.65,0.000176,120]
[420070513,1775649041435,-373.03,0.000176,120]
[420070514,1775649041445,-200.0,0.00017616,2]
[420070515,1775649041454,-217.0,0.00017616,2]
[420070516,1775649041465,-250.0,0.00017616,2]
[420070517,1775649041475,-250.0,0.00017616,2]
[420070518,1775649041484,-225.563,0.00017616,2]
[420070519,1775649041495,-272.16418036,0.00017616,2]
[420070520,1775649041505,-2000.0,0.00017616,2]
[420070521,1775649041515,-2000.0,0.00017616,2]
[420070522,1775649041525,-2000.0,0.00017616,2]
[420070523,1775649041535,-2000.0,0.00017616,2]
[420070524,1775649041546,-2000.0,0.00017616,2]
[420070525,1775649041556,-2000.0,0.00017616,2]
[420070526,1775649041565,-1473.73853004,0.00017626,2]
[420070527,1775649041576,-788.84542801,0.000177,2]
[420070528,1775649041585,-903.53,0.000178,2]
[420070529,1775649041595,-1354.5,0.000178,2]
[420070530,1775649041604,-201.51,0.000178,6]
[420070531,1775649041613,-1119.33,0.000178,6]
[420070532,1775649041623,-635.04,0.000178,6]
[420070533,1775649041633,-351.2371,0.000178,2]
[420070534,1775649041643,-650.0,0.00017808,2]
[420070535,1775649041653,-250.0,0.00017846,2]
[420070536,1775649041663,-208.195,0.00017846,2]
[420070537,1775649041673,-250.0,0.00017846,2]
[420070538,1775649041683,-163.308,0.00017846,2]
[420070539,1775649041692,-155.122,0.00017846,2]
[420070540,1775649041702,-193.665,0.00017846,2]
[420070541,1775649041712,-166.211,0.00017846,2]
[420070542,1775649041721,-215.048,0.00017846,2]
[420070543,1775649041731,-250.0,0.00017846,2]
[420070544,1775649041741,-180.0,0.00017846,2]
[420070545,1775649041751,-1010.10560146,0.0001786,2]
[420070546,1775649041761,-2812.0,0.00017868,2]
[420070547,1775649041771,-1232.46433243,0.0001789,2]
[420070548,1775649041782,-1079.97809895,0.0001789,2]
[420070549,1775649041791,-1466.0,0.00017919,2]
[420070550,1775649041800,-2812.0,0.00017958,2]
[420070551,1775649041810,-20000.0,0.0001799,2]
[420070552,1775649041821,-300.0,0.00017999,2]
[420070553,1775649041830,-300.0,0.00017999,2]
[420070554,1775649041841,-300.0,0.00017999,2]
[420070555,1775649041850,-300.0,0.00017999,2]
[420070556,1775649041861,-300.0,0.00017999,2]
[420070557,1775649041871,-300.0,0.00017999,2]